Cogmind - Beta 14 @@@ ROGUE MODE // 2024.09.22 @ 01:05:08 Player: cptwinky Result: Destroyed by Triborg with Siege Cannon Performance ------------- Evolutions (2) 1000 Regions Visited (6) 1200 Robots Destroyed (75) 375 Value Destroyed (1834) 1834 Prototype IDs (32) 640 Alien Tech Used (0) 0 Bonus (665) 665 TOTAL SCORE: 5714 Bonus ------- Follower Combat Kills 494 Registered with UFD 300 Friendly Fire -129 Cogmind --------- Core Integrity 0/550 Matter 300/300 Energy 340/340 System Corruption 0% Temperature Cool (0) Movement Core (650) Ox12 Location -8/Scraptown Parts ------- > --- POWER (1) -------- Heavy Antimatter Reactor > --- PROPULSION (3) --- (None) > --- UTILITY (4) ------ Large Storage Unit Advanced Targeting Computer > --- WEAPON (3) ------- Mini Grenade Launcher > --- INVENTORY (15) --- High-capacity Matter Pod (200) Experimental Terrain Scan Processor Advanced Targeting Computer Personal Teleporter v0.10 (1/15) Enhanced Autogun Rocket Launcher Datajack Plasma Cutter Multitool Makeshift Axe Vortex Trap Vortex Trap Peak State ------------ > --- POWER ------------ Improved Deuterium Engine > --- PROPULSION ------- Armored Treads Armored Treads Overtuned Treads > --- UTILITY ---------- Large Storage Unit Improved Medium Armor Plating Improved Shield Generator Personal Teleporter v0.10 > --- WEAPON ----------- Junk Cannon Makeshift Axe > --- INVENTORY -------- Heavy Antimatter Reactor Improved Heat Sink High-capacity Matter Pod Experimental Terrain Scan Processor Advanced Targeting Computer Advanced Targeting Computer Enhanced Autogun Rocket Launcher Mini Grenade Launcher Datajack Plasma Cutter Multitool Vortex Trap Deploy-a-Sentry [Rating: 49] Favorites ----------- Power Improved Deuterium Engine Engine Improved Deuterium Engine Reactor Heavy Antimatter Reactor Propulsion Armored Treads Treads Armored Treads Leg Experimental Flexi-carbon Leg Wheel Wheel Flight Unit Improved Flight Unit Utility Improved Heat Sink Device Improved Heat Sink Storage High-capacity Storage Unit Processor Targeting Computer Hackware Hacking Suite Protection Heavy Armor Plating Weapon Improved Assault Rifle Energy Gun Medium Laser Energy Cannon Beam Cannon Ballistic Gun Improved Assault Rifle Ballistic Cannon Battle Cannon Launcher Mini Grenade Launcher Special Weapon Junk Cannon Slashing Weapon Makeshift Axe Special Melee Weapon Datajack Build | -11 -10 -10 -8 -8 -8 -8 ------- Run | Yrd Mat Sub Mat Sto Rec Scr Slots Evolved 4 | . . . 4 . . . Power . | . . . . . . . Propulsion 1 | . . . 1 . . . Utility 2 | . . . 2 . . . Weapon 1 | . . . 1 . . . Parts Attached 125 | 6 4 24 23 32 13 23 Power 10 | 1 . 1 4 . 2 2 Engine 8 | 1 . 1 4 . 1 1 Core . | . . . . . . . Reactor 2 | . . . . . 1 1 Propulsion 21 | 2 . 2 5 8 1 3 Treads 16 | 2 . 2 4 7 . 1 Leg 3 | . . . . . 1 2 Wheel 1 | . . . 1 . . . Hover . | . . . . . . . Flight 1 | . . . . 1 . . Utility 42 | 1 3 9 8 3 6 12 Device 17 | . . 4 3 . 2 8 Storage 5 | 1 2 1 . . . 1 Processor 3 | . . 1 . . . 2 Hackware 2 | . . . 1 1 . . Protection 15 | . 1 3 4 2 4 1 Artifact . | . . . . . . . Weapon 52 | 2 1 12 6 21 4 6 Energy Gun 6 | 1 . . 4 1 . . Energy Cannon 1 | . . 1 . . . . Ballistic Gun 23 | 1 . 4 1 12 2 3 Ballistic Cannon 6 | . 1 4 . 1 . . Launcher 3 | . . 1 . 1 . 1 Special Weapon 8 | . . . 1 4 2 1 Impact Weapon . | . . . . . . . Slashing Weapon 4 | . . 2 . 1 . 1 Piercing Weapon . | . . . . . . . Special Melee Weapon 1 | . . . . 1 . . Unidentified Prototypes 10 | . . . 4 3 2 1 Parts Lost 18 | . . 2 2 1 4 9 Power 2 | . . 1 . . . 1 Propulsion 4 | . . . . . 1 3 Utility 10 | . . 1 1 1 3 4 Weapon 2 | . . . 1 . . 1 Highest Loss Streak 8 | . . 1 1 1 3 8 To Critical Strikes . | . . . . . . . Average Slot Usage (%) 94 | . 97 100 98 99 96 85 Engine 10 | . 14 14 9 9 8 8 Treads 25 | . 28 28 26 27 25 23 Leg 1 | . . . . . 1 3 Device 6 | . . 2 4 9 9 9 Storage 10 | . 14 14 9 9 9 9 Processor 3 | . . 10 6 . . . Hackware 2 | . . . 8 6 5 . Protection 7 | . 11 . 6 10 9 8 Energy Gun 2 | . 14 2 7 4 . . Ballistic Gun 15 | . 1 13 12 21 26 16 Ballistic Cannon 4 | . 12 10 7 . . . Special Weapon 1 | . . . . . . 4 Peak Build Rating 49 | 6 8 19 37 35 40 49 Average Rating 28 | 5 7 12 28 31 33 43 On Entrance 19 | . 6 8 17 35 33 40 Naked Turns . | . . . . . . . Heaviest Build 85 | 11 51 52 62 63 73 85 Greatest Support 60 | 40 40 40 60 60 60 58 Greatest Overweight (x) 5 | . 1 1 5 1 1 3 Average Overweight (x) . | . . . 1 . . 1 Largest Inventory Capacity 20 | 8 20 20 20 20 20 20 Average Capacity 17 | 6 14 16 20 20 20 17 Most Carried 20 | 7 14 20 20 20 20 20 Average Carried 16 | 4 12 16 19 18 18 16 Final Capacity 20 | 8 15 20 20 20 20 15 Final Carried 20 | 7 14 20 19 20 16 12 Class Distribution -------------------- 38% | Commander-Tank 27% | Mutant 12% | Scavenger-Tank 7% | Derelict-Mutant 5% | Scavenger-Gunner 3% | Tank Dominant Class ---------------- Mutant | -10/Materials Mutant | -10/Subcaves Scavenger-Gunner | -8/Materials Scavenger-Tank | -8/Storage Commander-Tank | -8/Recycling Commander-Tank | -8/Scraptown Resources | -11 -10 -10 -8 -8 -8 -8 ----------- Run | Yrd Mat Sub Mat Sto Rec Scr Matter Collected 2878 | 223 191 724 616 478 382 264 Remotely . | . . . . . . . Salvage Created 2525 | 36 200 513 684 407 441 244 Parts 143 | 5 21 39 29 18 19 12 Haulers Intercepted 10 | . 1 . 4 5 . . Recyclers Shooed 4 | . . . . 3 1 . Parts Field Recycled . | . . . . . . . Retrieved Matter . | . . . . . . . Parts Self-Destructed 30 | . . 30 . . . . Prevented . | . . . . . . . Kills | -11 -10 -10 -8 -8 -8 -8 ------- Run | Yrd Mat Sub Mat Sto Rec Scr Combat Hostiles Destroyed 53 | . 8 19 11 2 8 5 Melee 1 | . . . . . . 1 Guns 35 | . 5 11 9 2 8 . Cannons 12 | . 3 7 2 . . . AOE 3 | . . 1 . . . 2 Classes Destroyed 18 | 1 5 2 3 1 2 4 Worker 2 | . 1 . 1 . . . Builder 2 | . . . 2 . . . Tunneler 3 | 2 1 . . . . . Hauler 10 | . 1 . 4 5 . . Recycler 2 | . . . . 2 . . Operator 3 | . 1 . 1 1 . . Swarmer 16 | . 6 7 . 2 1 . Grunt 11 | . 2 2 7 . . . Protector 2 | . . . . . 2 . Sentry 5 | . . . 3 . 2 . Hunter 1 | . . . 1 . . . Programmer 1 | . . . . . 1 . Cobbler 1 | . . 1 . . . . Subdweller 10 | . . 10 . . . . Explorer 2 | . . . . . . 2 Guru 1 | . . . . . . 1 Scientist 1 | . . . . . . 1 Elite 2 | . . . . . . 2 Best Kill Streak 4 | 2 4 3 4 2 2 3 Combat Bots Only 4 | . 3 3 4 2 2 3 Max Kills in Single Turn 2 | 1 1 1 2 2 1 2 Gunslinging 1 | . . . . 1 . . Exploded 2 | . . 1 . . . 2 Melee 1 | . . . . . . 1 Uniques/NPCs Destroyed 2 | . . . . . 2 . 01-MTF (-8/Recycling) KN-7UR (-8/Recycling) Combat | -11 -10 -10 -8 -8 -8 -8 -------- Run | Yrd Mat Sub Mat Sto Rec Scr Hostile Shots Fired 489 | . 19 73 64 45 209 79 Missed 127 | . 4 31 21 15 32 24 Damage Taken 5594 | . 158 665 667 517 2000 1587 Core 813 | . 10 206 68 48 168 313 Absorbed by Shields 31 | . . . . . . 31 Regen/Repaired (Parts) 147 | . . . . 147 . . Core Remaining (%) 56 | 100 . 13 . . . . Volleys Fired 203 | 4 28 59 40 17 33 22 Largest 3 | 2 2 2 3 3 3 1 Hottest 183 | 70 85 88 161 183 69 30 Shots Fired 457 | 8 49 113 117 49 99 22 Gun 314 | 8 25 56 78 48 99 . Cannon 119 | . 24 56 39 . . . Launcher 4 | . . 1 . 1 . 2 Special 20 | . . . . . . 20 Kinetic 344 | 4 28 95 88 30 99 . Thermal 90 | 4 21 18 29 18 . . Explosive 3 | . . . . 1 . 2 Electromagnetic . | . . . . . . . Impact 20 | . . . . . . 20 Robot Hit Streak 44 | 4 14 44 19 13 16 15 Robot Miss Streak 3 | 1 1 3 3 2 2 1 Penetration Max . | . . . . . . . Secondary Targets 2 | . . . . 2 . . Max Gunslinging Chain 2 | . . . . 2 . . Shots Hit Robots 329 | 6 25 83 72 34 78 31 Core Hits 123 | 3 12 32 30 14 24 8 Critical Kills . | . . . . . . . Critical Parts Destroyed 3 | . . . . 1 . 2 Critical Strikes 15 | . 2 4 4 2 . 3 Burn 7 | . 1 1 4 1 . . Destroy 1 | . . . . 1 . . Blast 4 | . 1 3 . . . . Smash 2 | . . . . . . 2 Sever 1 | . . . . . . 1 Melee Attacks 33 | . . 11 . 2 . 20 Impact . | . . . . . . . Slashing 32 | . . 11 . 1 . 20 Piercing . | . . . . . . . Sneak Attacks 1 | . . . . 1 . . Combat Hostiles . | . . . . . . . Follow-up Attacks . | . . . . . . . Damage Inflicted 6400 | 61 399 1642 1519 676 994 1109 Guns 3648 | 61 187 773 1078 575 974 . Cannons 1323 | . 188 704 431 . . . Explosions 329 | . . 165 . . . 164 Melee 105 | . . . . . . 105 Ramming 155 | . 24 . 10 101 20 . Kinetic 4112 | 23 194 1474 1101 346 974 . Thermal 1024 | 38 181 168 408 229 . . Explosive 164 | . . . . . . 164 Electromagnetic . | . . . . . . . Impact 840 | . . . . . . 840 Slashing 105 | . . . . . . 105 Piercing . | . . . . . . . Highest Corruption 4 | . . . 4 . . . Average Corruption 2 | . . . 2 . . . Corruption Purged 7 | . . . 7 . . . Corruption Blocked . | . . . . . . . Effects 11 | . . . 11 . . . Message Errors 2 | . . . 2 . . . Matter Fused 3 | . . . 3 . . . Heat Flow Errors 1 | . . . 1 . . . Energy Discharges 1 | . . . 1 . . . Data Loss (minor) 2 | . . . 2 . . . Data Loss (major) 1 | . . . 1 . . . Misfires 1 | . . . 1 . . . Overload Shots . | . . . . . . . Overflow Damage 119 | . . 4 . . . 115 Projectiles 119 | . . 4 . . . 115 Explosions . | . . . . . . . Melee . | . . . . . . . Knockbacks 14 | . . 6 5 . . 3 Impact 3 | . . . . . . 3 Kinetic 10 | . . 6 4 . . . Secondary 1 | . . . 1 . . . Self-Inflicted Damage . | . . . . . . . Shots . | . . . . . . . Rammed 22 | . 4 . 2 11 5 . Targets Rammed 26 | . 5 . 3 13 5 . Kicked . | . . . . . . . Crushed 4 | . 1 . 1 2 . . Highest Temperature 387 | 40 207 8 387 114 32 . Average Temperature 65 | 20 64 6 93 36 12 . Received Heat Transfer 1686 | . 54 54 279 153 1083 63 Effects 5 | . 1 . 4 . . . Shutdowns 1 | . . . 1 . . . Energy Bleed 1 | . 1 . . . . . Interference 1 | . . . 1 . . . Matter Decay 1 | . . . 1 . . . Short Circuit 1 | . . . 1 . . . Siege Activations . | . . . . . . . Robots Corrupted 2 | . . . . . . 2 Combat Hostiles 2 | . . . . . . 2 Parts Fried . | . . . . . . . Impact Corruptions 6 | . . . . . . 6 Robots Melted . | . . . . . . . Combat Hostiles . | . . . . . . . Parts Melted 7 | . 3 . 3 1 . . Heat Transferred 2886 | 111 592 481 1147 555 . . Parts Sabotaged . | . . . . . . . Parts Stolen . | . . . . . . . Parts Stripped . | . . . . . . . Power Chain Reactions . | . . . . . . . Alert | -11 -10 -10 -8 -8 -8 -8 ------- Run | Yrd Mat Sub Mat Sto Rec Scr Peak Influence 298 | 10 118 . 298 192 60 . Initial 29 | . 6 . 29 29 . . Average 43 | 2 64 . 96 21 21 . Maximum Alert Level 1 | . . . 1 . . . Low Security (%) 97 | 100 100 . 87 100 100 . Level 1 2 | . . . 12 . . . Level 2 . | . . . . . . . Level 3 . | . . . . . . . Level 4 . | . . . . . . . Level 5 . | . . . . . . . High Security . | . . . . . . . Max Security . | . . . . . . . Squads Dispatched 4 | . . . . 4 . . Investigation 2 | . . . . 2 . . Extermination . | . . . . . . . Reinforcement 2 | . . . . 2 . . Assault . | . . . . . . . Garrison . | . . . . . . . Intercept . | . . . . . . . Searches Triggered . | . . . . . . . Construction Impeded . | . . . . . . . Haulers Reinforced . | . . . . . . . Active Scanning Responses . | . . . . . . . Cargo Convoy Interrupts . | . . . . . . . Stealth | -11 -10 -10 -8 -8 -8 -8 --------- Run | Yrd Mat Sub Mat Sto Rec Scr Distress Signals 7 | . 2 . 3 1 1 . Communications Jammed . | . . . . . . . Distress Signals . | . . . . . . . Times Spotted 122 | . 20 18 24 27 11 22 Peak Tracking Total 15 | . 4 5 6 8 4 15 Tactical Retreats 6 | . 1 2 1 2 . . Traps | -11 -10 -10 -8 -8 -8 -8 ------- Run | Yrd Mat Sub Mat Sto Rec Scr Traps Triggered 3 | . . 1 2 . . . Indirectly . | . . . . . . . Trap Hack Attempts . | . . . . . . . Triggered . | . . . . . . . Disarmed . | . . . . . . . Reprogrammed . | . . . . . . . Reused 4 | . . 1 2 . . 1 Traps Extracted . | . . . . . . . Installed 5 | . . 1 3 . . 1 Triggered 2 | . . . 2 . . . Most Traps Carried 3 | . . 3 3 . . 2 Machines | -11 -10 -10 -8 -8 -8 -8 ---------- Run | Yrd Mat Sub Mat Sto Rec Scr Machines Disabled 14 | . . . 3 1 . 10 Max in Single Turn 1 | . . . 1 1 . 1 Garrison Access 2 | . . . 1 1 . . Machines Repaired . | . . . . . . . Machines Dismantled . | . . . . . . . Machines Sabotaged . | . . . . . . . Overloaded Fab Kills . | . . . . . . . Hacking | -11 -10 -10 -8 -8 -8 -8 --------- Run | Yrd Mat Sub Mat Sto Rec Scr Machines Accessed 31 | . 7 1 7 9 5 2 Terminals 19 | . 6 . 3 5 5 . Fabricators . | . . . . . . . Repair Stations 3 | . . . 1 2 . . Recycling Units 2 | . 1 . . 1 . . Scanalyzers 2 | . . . 2 . . . Garrison Access 2 | . . . 1 1 . . Total Hacks 77 | . 22 4 15 20 11 5 Successful 45 | . 13 4 9 10 4 5 Failed 30 | . 8 . 6 10 6 . Catastrophic 4 | . . . 1 3 . . Database Lockouts 2 | . 1 . . . 1 . Manual 38 | . 13 . 6 10 9 . Terminals 46 | . 18 . 7 10 11 . Fabricators . | . . . . . . . Repair Stations 6 | . . . 2 4 . . Recycling Units 7 | . 4 . . 3 . . Scanalyzers 4 | . . . 4 . . . Garrison Access 5 | . . . 2 3 . . Terminal Hacks 22 | . 4 4 2 4 3 5 Record 8 | . . 4 . . . 4 Part Schematic 1 | . . . . . 1 . Robot Analysis 7 | . 3 . 1 2 1 . Prototype ID Bank 1 | . . . . . 1 . Unreport Threat 2 | . . . 1 1 . . Locate Traps 1 | . 1 . . . . . Recall Investigation 1 | . . . . 1 . . Derelict Proto ID Bank 1 | . . . . . . 1 Fabricator Hacks . | . . . . . . . Repair Station Hacks 3 | . . . 1 2 . . Scan Component 2 | . . . 1 1 . . Repair 1 | . . . . 1 . . Recycling Unit Hacks 5 | . 3 . . 2 . . Process 2 | . 1 . . 1 . . Report Inventory 1 | . 1 . . . . . Retrieve Matter 2 | . 1 . . 1 . . Scanalyzer 4 | . . . 4 . . . Insert Component 3 | . . . 3 . . . Analyze 1 | . . . 1 . . . Garrison Access Hacks 2 | . . . 1 1 . . Seal Access 2 | . . . 1 1 . . Unauthorized Hacks 9 | . 6 . 1 1 1 . Terminals 9 | . 6 . 1 1 1 . Botnet 4 | . 1 . 1 1 1 . Skim 5 | . 5 . . . . . Fabricators . | . . . . . . . Repair Stations . | . . . . . . . Recycling Units . | . . . . . . . Scanalyzers . | . . . . . . . Garrison Access . | . . . . . . . Data Cores Recovered 1 | . 1 . . . . . Used . | . . . . . . . Hacking Detections 19 | . 6 . 6 4 3 . Full Trace Events 1 | . . . . 1 . . Feedback Events 1 | . . . . 1 . . Hackware Fried 1 | . . . . 1 . . Feedback Blocked . | . . . . . . . Robot Schematics Acquired . | . . . . . . . Robots Built . | . . . . . . . Authchips . | . . . . . . . Time . | . . . . . . . Total Robot Build Rating . | . . . . . . . Part Schematics Acquired 2 | . . . 1 . 1 . Parts Built . | . . . . . . . Authchips . | . . . . . . . Time . | . . . . . . . Total Part Build Rating . | . . . . . . . Parts Repaired 1 | . . . . 1 . . Time 32 | . . . . 32 . . Parts Recycled . | . . . . . . . Recycled Matter 1105 | . 71 . . 1034 . . Retrieved Matter 1105 | . 71 . . 1034 . . Retrieved Components . | . . . . . . . Parts Scanalyzed 1 | . . . 1 . . . Part Schematics Acquired 1 | . . . 1 . . . Parts Damaged . | . . . . . . . Bothacking | -11 -10 -10 -8 -8 -8 -8 ------------ Run | Yrd Mat Sub Mat Sto Rec Scr Used RIF Installer . | . . . . . . . Robots Hacked 1 | . . . . 1 . . Non-combat . | . . . . . . . Combat 1 | . . . . 1 . . Robot Hacks Applied 1 | . . . . 1 . . parse_system 1 | . . . . 1 . . Relay Couplers Released . | . . . . . . . Fabnet Peak Effective % . | . . . . . . . Robots Rewired 10 | . . . . . 10 . Allies Hacked . | . . . . . . . Hacks Repelled . | . . . . . . . Allies | -11 -10 -10 -8 -8 -8 -8 -------- Run | Yrd Mat Sub Mat Sto Rec Scr Total Allies 11 | . . . . . 10 1 Largest Group 10 | . . . . . 9 10 Highest-Rated Group 256 | . . . . . 180 256 Highest-Rated Ally 76 | . . . . . 34 76 Total Orders 17 | . . . . . 5 12 STAY 9 | . . . . . 3 6 FOLLOW 8 | . . . . . 2 6 Ally Attacks 61 | . . . . . 9 52 Total Damage 2109 | . . . . . 146 1963 Kills 22 | . . . . . 3 19 Allies Corrupted . | . . . . . . . Allies Melted 1 | . . . . . . 1 Turrets Deployed 1 | . . . . . . 1 Intel | -11 -10 -10 -8 -8 -8 -8 ------- Run | Yrd Mat Sub Mat Sto Rec Scr Robot Analysis Total 7 | . 3 . 1 2 1 . Derelict Logs Recovered 3 | . . 1 . . . 2 Drone Launches . | . . . . . . . Drone Recoveries . | . . . . . . . Exploration | -11 -10 -10 -8 -8 -8 -8 ------------- Run | Yrd Mat Sub Mat Sto Rec Scr Turns Passed 19041 | 113 1459 5145 1464 2431 2056 6373 Spaces Moved 7329 | 56 456 2204 489 903 734 2487 Core 4 | 4 . . . . . . Treads 7272 | 52 456 2204 437 903 734 2486 Legs . | . . . . . . . Wheels 52 | . . . 52 . . . Hover . | . . . . . . . Flight . | . . . . . . . Fastest Speed 50 | 50 160 160 155 160 166 220 Average Speed 215 | 152 177 181 199 217 245 248 Slowest Speed 410 | 160 240 260 246 252 252 410 Overloaded Moves . | . . . . . . . Propulsion Burnouts . | . . . . . . . Robots Hopped . | . . . . . . . Cave-ins Triggered . | . . . . . . . Teleports 1 | . . . . . . 1 Exploration Rate (%) 66 | 4 62 89 33 96 93 87 Regions Visited 6 Branch Regions 4 Pre-discovered Areas . | . . . . . . . Known Exits Taken 2 | . 1 . . 1 . . Unknown Exits Taken 4 | 1 . 1 1 . 1 . Scrap Searched 14 | . . 6 . . . 8 Spaces Dug 18 | . . 6 . 9 . 3 Terrain Destroyed 51 | . . 22 8 9 . 12 Melee 9 | . . 6 . . . 3 Projectile 9 | . . . 8 . . 1 AOE 33 | . . 16 . 9 . 8 Terrain Rammed . | . . . . . . . Walls Destroyed . | . . . . . . . Machines Disabled . | . . . . . . . Actions | -11 -10 -10 -8 -8 -8 -8 --------- Run | Yrd Mat Sub Mat Sto Rec Scr Total 10126 | 74 1057 3228 886 1316 901 2664 Wait 2119 | 2 552 891 289 306 47 32 Move 7323 | 55 455 2203 488 902 733 2487 Hop . | . . . . . . . Pick Up 104 | 7 9 19 19 17 2 31 Fast Attach 39 | 6 2 4 5 5 4 13 Attach 18 | . . 2 6 1 4 5 Detach 12 | . . 1 3 2 2 4 Swap 68 | . 2 18 12 26 5 5 Drop 107 | . 4 19 17 20 3 44 Fire 203 | 4 28 59 40 17 33 22 Melee 33 | . . 11 . 2 . 20 Ram . | . . . . . . . Kick . | . . . . . . . Crush 26 | . 5 . 3 13 5 . Escape Stasis . | . . . . . . . Rewire 59 | . . . . . 59 . Trap 5 | . . 1 3 . . 1 Miscellaneous 10 | . . . 1 5 4 . Route ------- -11/Scrapyard -10/Materials (discovered 6 exits: *Mat x3 / *Min x2 / *Sub) -10/Subcaves (discovered 3 exits: *Mat x2 / *Rec) -8/Materials (discovered 2 exits: Fac / *Sto) -8/Storage (discovered 2 exits: *Fac / *Rec) -8/Recycling (discovered 2 exits: [*Fac] / *Scr) -8/Scraptown (discovered 2 exits: [*Fac x2]) History --------- Turn | Location | Event 3 | -11/Scrapyard | Discovered new exit (range 15) 114 | -11/Scrapyard | Entered Materials 279 | -10/Materials | Discovered new exit (range 11) 318 | -10/Materials | Build established: Mutant 447 | -10/Materials | Discovered new exit (range 16) 642 | -10/Materials | Central database locked down 800 | -10/Materials | Learned location of 1 exit from Storage 858 | -10/Materials | Identified exit to Materials 906 | -10/Materials | Learned Storage trap positions 945 | -10/Materials | Learned 4 Recycling zone layouts 975 | -10/Materials | Identified exit to Mines 975 | -10/Materials | Identified exit to Subcaves 996 | -10/Materials | Loaded intel: 11 trap records 1573 | -10/Materials | Entered Subcaves 1664 | -10/Subcaves | Learned location of 1 exit from Materials 1957 | -10/Subcaves | Visited Clippyterm 1961 | -10/Subcaves | Identified exit to Recycling 1961 | -10/Subcaves | Learned Factory stockpile data 2600 | -10/Subcaves | Discovered new exit (range 7) 3536 | -10/Subcaves | Discovered new exit (range 14) 3650 | -10/Subcaves | Shifting Twisted Machinery released Slug Cannon 4098 | -10/Subcaves | Shifting Twisted Machinery released Battle Cannon 5172 | -10/Subcaves | A Subdweller sparked back to life 5172 | -10/Subcaves | A Subdweller sparked back to life 5216 | -10/Subcaves | Found Prototype Flight Unit 5499 | -10/Subcaves | Build established: Derelict-Mutant 5713 | -10/Subcaves | Curiously followed by a Cobbler waking with a query about "LVR3C" 6168 | -10/Subcaves | Core integrity fell below 50% 6650 | -10/Subcaves | Ambushed by angry Subdweller bent on revenge 6670 | -10/Subcaves | Core integrity fell below 20% 6718 | -10/Subcaves | Entered Materials 6718 | -8/Materials | Evolved 4 slots: Propulsion x1, Utility x2, Weapon x1 6719 | -8/Materials | Identified exit to Factory 6963 | -8/Materials | Discovered new exit (range 13) 7191 | -8/Materials | Build established: Scavenger-Gunner 7212 | -8/Materials | Identified Flightbrick 8182 | -8/Materials | Entered Storage 8184 | -8/Storage | Loaded intel: 18 trap records 8201 | -8/Storage | Met 01-MTF 8460 | -8/Storage | Build established: Scavenger-Tank 8803 | -8/Storage | Hacking Suite fried by hacking feedback 8851 | -8/Storage | Discovered exit to Recycling (range 8) 9199 | -8/Storage | Repaired Spk. Treads 10613 | -8/Storage | Entered Recycling 10613 | -8/Recycling | Accompanied by 1 ally (01-MTF) 11423 | -8/Recycling | Build established: Commander-Tank 11735 | -8/Recycling | Discovered new exit (range 16) 12127 | -8/Recycling | Scanned before Scraplab entrance 12328 | -8/Recycling | Destroyed 01-MTF 12392 | -8/Recycling | Core integrity fell below 50% 12410 | -8/Recycling | Destroyed KN-7UR 12424 | -8/Recycling | Lost 3 parts (1n2u) 12623 | -8/Recycling | Entered Scraplab 12643 | -8/Recycling | Discovered new exit (range 4) 12669 | -8/Recycling | Entered Scraptown 12669 | -8/Scraptown | Accompanied by 9 allies 13056 | -8/Scraptown | Heard Great Nut preacher, LISTEN AND RECITE! 13073 | -8/Scraptown | Discovered new exit (range 11) 13225 | -8/Scraptown | Scanned Subdweller tech in exchange for log data 13232 | -8/Scraptown | Learned location of 1 exit from Research 13322 | -8/Scraptown | Visited Comm Corps 13347 | -8/Scraptown | Visited Bundlers 13737 | -8/Scraptown | Visited The Evicted 13775 | -8/Scraptown | Visited Symbiants 13790 | -8/Scraptown | Visited Red Mages 14248 | -8/Scraptown | Visited UFD Registry 14248 | -8/Scraptown | Registered with UFD as "Alphaplate" 14362 | -8/Scraptown | Visited Modified Component R&D 14529 | -8/Scraptown | Visited Curators Association 14564 | -8/Scraptown | Visited Science Guys 14646 | -8/Scraptown | Visited Infowarlord's Domain 14657 | -8/Scraptown | Found Exp. Terrain Scan Processor 14695 | -8/Scraptown | Visited Junk Cannon Lab 14758 | -8/Scraptown | Visited Supply Room 14843 | -8/Scraptown | Visited Abandonware Association 14915 | -8/Scraptown | Learned abandonware demo "TRNCOAT.EXE" 14970 | -8/Scraptown | Visited Botcube Research 15020 | -8/Scraptown | Visited LU-1G1's Boring Crew 15163 | -8/Scraptown | Visited Cyclists 15180 | -8/Scraptown | Entered Cyclist Reading Room 15590 | -8/Scraptown | Found Prototype Special Weapon 15590 | -8/Scraptown | Identified Junk Cannon 16133 | -8/Scraptown | Discovered new exit (range 5) 16172 | -8/Scraptown | Warned about trapping Scraptown 16255 | -8/Scraptown | Found Botcube 17824 | -8/Scraptown | Found Scrap Suit 18078 | -8/Scraptown | Botcube activated 18098 | -8/Scraptown | Botcube completed mutation into wheeled form, armed with 2 guns. 18627 | -8/Scraptown | Build established: Commander-Mutant 18852 | -8/Scraptown | Attacked by Scraptown defenders 18876 | -8/Scraptown | Found Deploy-a-Sentry 18936 | -8/Scraptown | Lost 8 allies 18970 | -8/Scraptown | Found Personal Teleporter v0.10 18995 | -8/Scraptown | DAS Turret deployed 19035 | -8/Scraptown | Core integrity fell below 20% 19042 | -8/Scraptown | Destroyed by Triborg with Siege Cannon Last Messages --------------- 19028_ Penetrated by Siege Slug. 19028_ Imp. Medium Armor Plating destroyed. 19028_ Siege Slug penetrates Machine. 19028_ Machine disabled. 19030_ Penetrated by Siege Slug. 19032_ Imp. Heat Sink destroyed. 19032_ Destroyed Hcp. Matter Pod. 19032_ Triborg system corrupted by crushing effect. 19034_ Penetrated by Siege Slug. 19034_ Ovr. Treads destroyed. 19034_ Destroyed Imp. Targeting Computer. 19034_ Triborg system corrupted by crushing effect. 19036_ Penetrated by Siege Slug. 19036_ Arm. Treads destroyed. 19036_ Knocked back. 19038_ Penetrated by Siege Slug. 19040_ Junk Cannon destroyed. 19040_ QV-PWD(c) destroyed. 19041_ Acquired 10 matter. 19042_ Penetrated by Siege Slug. Map ----- +----------------------------------------------------+ | ?????????????????????????????????????????????????? | | ??????????????????????????????????#####???####???? | | ??????????????????????????????????#"""#??## ##??? | | ??????????????????????????"!##"" ##! "#### #### | | ?????????????????????? | | ?????????????????????? | | ?????????????????????????################# #### | | ???##############????????????????????????## ^##??? | | ???#""""""""""""#?????????????????????????# #???? | | ???#" " #"""""""#?????????????????????????# #???? | | ???# # " "#?????????????????????????# ##### | | ???####+# "#?????????????????????????# #"""" | | ???#""" ["#?????????????????????????# # " | | ???#" "#?????????????????????????# # | | ???#"" """""#???????????????##"######## # "# | | ???#" "#####?????#######???"" """"## # "# | | ???#X """""#?????# #??#"" """## # "# | | ???## #?????# #??# " ""## # "" | | ???#" #?????# #??#" """## # | | ???#" #?????? ???#" ## # | | ???########## ########??# #????###### ##### ## ## | | #???????##### #% # # ### ########### ##### ## ## | | #???????#"""" "[% "" "" """"""" """ "" "# | | #???????#" % ===% "# | | #???????#" =[* "# | | #???????#" [ ! [ @% "# | | #???????#" %%k!= %!! % % ]!% % "# | | #???#####" !TT% [[%! % % E= | | #???#"""" TT """"" """""""""""""""""" "# | | #???#"""" % ! """""""""""""""""""""""" "# | | #???#"""" ! %"" ### ################"" "# | | #???#"""" ""# ?? ?????????????#"" "# | | #???#"""" ""#?? ????????????#"" "# | | ###?#"""" ""#? "" "" ????????????#"" "# | | ""#"#"""" ""# "" "" ?????????###"" "# | | """"#"""" ""# " " ?######## #"" "# | | ""#######" "" "" | | ###?????#" "" "" "# | | #########" ""# " "???######## #"" "# | | ""# "" ""??????????###"" "# | | ""#? "" "" ????????????#"" "# | | ""#?? ????????????#"" "# | | ""#??? ?????????????#"" "# | | ""###### ################"" "# | | """"""""""" """""""""""""""" "# | | """"" """" """""""""""""""" | | "# | | [= "# | | !%* "# | | #""""#" ! ! # | +----------------------------------------------------+ Best States ------------- Heat Dissipation 45 Energy Generation 25 Energy Capacity 340 Matter Stores 300 Matter Capacity 300 Sight Range 16 Terrain Scan Density 10 Armor Coverage 600 Resistance: EM 15 Evasion (%) 40 Targeting Accuracy 8 Recoil Reduction 3 Matter Filtering 30 Offensive Hacking 10 Item Schematics ----------------- Multitool | -8/Materials | Scanalyzed Hacking Suite | -8/Recycling | Hacked Robot Schematics ------------------ None Fabricated ------------ Nothing Alien Tech Used ----------------- None Achievements -------------- None Challenges ------------ None Game ------ Seed DamperPersonalDesublimator Manual? 0 Play Time 01:02:34 Cumulative 1691.8 hours Start 2024.09.22 @ 00:02:28 End 2024.09.22 @ 01:05:08 Sessions 1 Manual Loads 0 Difficulty Rogue Special Mode None Game No. 1155 Rogue 1151 Adventurer 4 Explorer 0 Win Type - Total 214 Types 160/11/15/9/3/1/3/8/4 Lore% 98 Gallery% 98 Achievement% 98 Wizard Run 0 Options --------- Layout 2 ASCII 0 Keyboard 1 Movement Vi Keybinds 0 Fullscreen 0 Font 24/Terminus Map View 59x48 Zoom Use 0% Tactical HUD 1 Map Filters NONE Filters NONE Steam 1 RUN: d64cab62-dc5a-43d9-aaff-a5cc3af9af4a